[Event "Bamberg-Open 2019"]
[Site "Bamberg"]
[Date "2019.06.01"]
[Round "5.12"]
[White "Stauch, Edgar"]
[Black "Fiedorek, Michal"]
[Result "0-1"]
[ECO "A20"]
[WhiteElo "2207"]
[BlackElo "2088"]
[Annotator "ChessBase"]
[PlyCount "42"]
[EventDate "2019.05.12"]
[EventType "swiss"]
[EventCountry "GER"]
[SourceTitle "playchess.com"]
[Source "ChessBase"]
[SourceQuality "1"]
[TimeControl "40/5400+30:900+30"]

1. c4 {[%emt 0:00:00]} e5 {[%emt 0:00:00]} 2. g3 {[%emt 0:00:00]} Nf6 {[%emt 0:00:03]} 3. Bg2 {[%emt 0:00:00]} d5 {[%emt 0:00:38]} 4. cxd5 {[%emt 0:00:02]} Nxd5 {[%emt 0:00:09]} 5. Nc3 {[%emt 0:02:12]} Nb6 {[%emt 0:00:17]} 6. Nf3 {[%emt 0:05:57]} Nc6 {[%emt 0:01:04]} 7. Rb1 {[%emt 0:00:34]} a5 {[%emt 0:07:23]} 8. O-O {[%emt 0:02:11]} Be7 {[%emt 0:00:11]} 9. d3 {[%emt 0:00:25]} O-O {[%emt 0:00:41]} 10. Be3 {[%emt 0:00:39]} Be6 {[%emt 0:01:42]} 11. Bxb6 {[%emt 0:05:38]} cxb6 {[%emt 0:00:22]} 12. Qa4 {[%emt 0:03:34]} f5 {[%emt 0:06:43]} 13. Rbd1 {[%emt 0:04:07]} Bf6 {[%emt 0:03:21]} 14. e4 {[%emt 0:02:22]} Kh8 {[%emt 0:06:56]} 15. exf5 {[%emt 0:02:09]} Bxf5 {[%emt 0:00:16]} 16. Ne4 {[%emt 0:00:07]} Rc8 {[%emt 0:02:17]} 17. a3 {[%emt 0:01:47]} Be7 {[%emt 0:09:00]} 18. Rfe1 {[%emt 0:16:46]} Bd7 {[%emt 0:06:45]} 19. Qb3 {[%emt 0:10:31]} Bg4 {[%emt 0:03:08]} 20. Ned2 {[%emt 0:03:11]} Nd4 {[%emt 0:01:24]} 21. Nxd4 {[%emt 0:01:35]} Qxd4 {[%emt 0:02:18]} 0-1

[Event "Bamberg-Open 2019"]
[Site "Bamberg"]
[Date "2019.06.01"]
[Round "5.13"]
[White "Chennaoui, Yasin"]
[Black "Johansson, Jukka"]
[Result "1/2-1/2"]
[ECO "A36"]
[WhiteElo "2184"]
[BlackElo "2071"]
[Annotator "ChessBase"]
[PlyCount "55"]
[EventDate "2019.05.12"]
[EventType "swiss"]
[EventCountry "GER"]
[SourceTitle "playchess.com"]
[Source "ChessBase"]
[SourceQuality "1"]
[TimeControl "40/5400+30:900+30"]

1. c4 {[%emt 0:00:00]} c5 {[%emt 0:00:00]} 2. g3 {[%emt 0:00:00]} g6 {[%emt 0:00:00]} 3. Bg2 {[%emt 0:00:00]} Bg7 {[%emt 0:00:17]} 4. Nc3 {[%emt 0:00:00]} Nc6 {[%emt 0:00:34]} 5. a3 {[%emt 0:00:31]} e6 {[%emt 0:02:06]} 6. b4 {[%emt 0:03:02]} d6 {[%emt 0:13:10]} 7. Rb1 {[%emt 0:02:34]} Nge7 {[%emt 0:01:23]} 8. Nf3 {[%emt 0:20:10]} O-O {[%emt 0:00:57]} 9. O-O {[%emt 0:00:03]} Rb8 {[%emt 0:02:46]} 10. Ne1 {[%emt 0:07:03]} b6 {[%emt 0:02:59]} 11. Nc2 {[%emt 0:03:07]} Bb7 {[%emt 0:02:34]} 12. Bb2 {[%emt 0:20:39]} Qd7 {[%emt 0:02:14]} 13. d3 {[%emt 0:02:56]} Nf5 {[%emt 0:03:23]} 14. e4 {[%emt 0:03:29]} Nfd4 {[%emt 0:03:16]} 15. Ne2 {[%emt 0:02:34]} Rbc8 {[%emt 0:07:40]} 16. b5 {[%emt 0:02:51]} Nxe2+ {[%emt 0:03:13]} 17. Qxe2 {[%emt 0:00:02]} Nd4 {[%emt 0:00:58]} 18. Bxd4 {[%emt 0:04:30]} Bxd4 {[%emt 0:07:06]} 19. Nxd4 {[%emt 0:00:14]} cxd4 {[%emt 0:00:06]} 20. Qb2 {[%emt 0:00:28]} e5 {[%emt 0:04:20]} 21. f4 {[%emt 0:06:44]} f5 {[%emt 0:03:45]} 22. Rbe1 {[%emt 0:00:13]} Rce8 {[%emt 0:00:55]} 23. Qd2 {[%emt 0:03:53]} Kg7 {[%emt 0:02:25]} 24. a4 {[%emt 0:00:18]} Rf7 {[%emt 0:03:14]} 25. Rf2 {[%emt 0:00:51]} fxe4 {[%emt 0:03:51]} 26. Bxe4 {[%emt 0:00:53]} Bxe4 {[%emt 0:00:55]} 27. Rxe4 {[%emt 0:01:53]} Ref8 {[%emt 0:05:00]} 28. Qe2 {[%emt 0:08:44]} 1/2-1/2

[Event "Bamberg-Open 2019"]
[Site "Bamberg"]
[Date "2019.06.01"]
[Round "5.14"]
[White "Spitzl, Bertram"]
[Black "Rempeli, Alex"]
[Result "1-0"]
[ECO "A06"]
[WhiteElo "2176"]
[BlackElo "2016"]
[Annotator "ChessBase"]
[PlyCount "79"]
[EventDate "2019.05.12"]
[EventType "swiss"]
[EventCountry "GER"]
[SourceTitle "playchess.com"]
[Source "ChessBase"]
[SourceQuality "1"]
[TimeControl "40/5400+30:900+30"]

1. g3 {[%emt 0:00:00]} d5 {[%emt 0:00:00]} 2. Nf3 {[%emt 0:00:00]} g6 {[%emt 0:00:11]} 3. Bg2 {[%emt 0:00:35]} Bg7 {[%emt 0:00:15]} 4. d4 {[%emt 0:02:00]} Nd7 {[%emt 0:00:31]} 5. O-O {[%emt 0:00:49]} Ngf6 {[%emt 0:01:38]} 6. c4 {[%emt 0:01:15]} dxc4 {[%emt 0:00:48]} 7. Na3 {[%emt 0:02:05]} Nb6 {[%emt 0:01:02]} 8. Ne5 {[%emt 0:00:30]} Ng4 {[%emt 0:01:28]} 9. Nxg4 {[%emt 0:04:45]} Bxg4 {[%emt 0:00:11]} 10. Bxb7 {[%emt 0:04:19]} Rb8 {[%emt 0:00:08]} 11. Bc6+ {[%emt 0:00:54]} Kf8 {[%emt 0:00:30]} 12. Qc2 {[%emt 0:15:20]} Qxd4 {[%emt 0:16:09]} 13. Nb5 {[%emt 0:14:48]} Qc5 {[%emt 0:04:36]} 14. Nxa7 {[%emt 0:09:51]} Nd5 {[%emt 0:12:32]} 15. Rd1 {[%emt 0:02:24]} Nb4 {[%emt 0:19:04]} 16. Qa4 {[%emt 0:01:45]} Bxe2 {[%emt 0:06:30]} 17. Be3 {[%emt 0:04:15]} Bxd1 {[%emt 0:02:29]} 18. Rxd1 {[%emt 0:00:05]} Qh5 {[%emt 0:01:39]} 19. Rd2 {[%emt 0:07:15]} Bf6 {[%emt 0:04:37]} 20. Bg2 {[%emt 0:06:52]} Kg7 {[%emt 0:06:49]} 21. a3 {[%emt 0:01:51]} Nd3 {[%emt 0:00:01]} 22. Qxc4 {[%emt 0:00:31]} Nxb2 {[%emt 0:02:03]} 23. Qxc7 {[%emt 0:03:20]} Qg4 {[%emt 0:01:53]} 24. h3 {[%emt 0:01:07]} Qc4 {[%emt 0:00:20]} 25. Nc6 {[%emt 0:01:42]} Rb3 {[%emt 0:04:42]} 26. Kh2 {[%emt 0:05:00]} Rxa3 {[%emt 0:04:30]} 27. Bd5 {[%emt 0:01:13]} Qc3 {[%emt 0:01:28]} 28. Qf4 {[%emt 0:01:14]} g5 {[%emt 0:02:22]} 29. Qf5 {[%emt 0:03:09]} h6 {[%emt 0:02:27]} 30. Nxe7 {[%emt 0:00:15]} Re8 {[%emt 0:01:18]} 31. Bd4 {[%emt 0:03:48]} Qxd4 {[%emt 0:00:30]} 32. Rxd4 {[%emt 0:00:05]} Rxe7 {[%emt 0:00:12]} 33. Rd2 {[%emt 0:00:35]} Na4 {[%emt 0:01:58]} 34. Be4 {[%emt 0:00:21]} Re5 {[%emt 0:00:32]} 35. Qh7+ {[%emt 0:01:15]} Kf8 36. Rd7 Re7 {[%emt 0:01:57]} 37. Qxh6+ {[%emt 0:01:09]} Ke8 {[%emt 0:00:35]} 38. Bc6 {[%emt 0:01:46]} Rxd7 {[%emt 0:00:30]} 39. Qxf6 {[%emt 0:00:14]} Rad3 {[%emt 0:00:31]} 40. Bxa4 1-0

[Event "Bamberg-Open 2019"]
[Site "Bamberg"]
[Date "2019.06.01"]
[Round "5.15"]
[White "Zenker, Ulrich"]
[Black "Syed, Tareq"]
[Result "1-0"]
[ECO "A53"]
[WhiteElo "2147"]
[BlackElo "2001"]
[Annotator "ChessBase"]
[PlyCount "75"]
[EventDate "2019.05.12"]
[EventType "swiss"]
[EventCountry "GER"]
[SourceTitle "playchess.com"]
[Source "ChessBase"]
[SourceQuality "1"]
[TimeControl "40/5400+30:900+30"]

1. d4 {[%emt 0:00:00]} Nf6 {[%emt 0:00:00]} 2. c4 {[%emt 0:00:09]} d6 {[%emt 0:00:00]} 3. Nf3 {[%emt 0:00:16]} Nbd7 {[%emt 0:00:19]} 4. Nc3 {[%emt 0:00:12]} e5 {[%emt 0:00:40]} 5. g3 {[%emt 0:03:07]} c6 {[%emt 0:00:36]} 6. Bg2 {[%emt 0:00:12]} Be7 {[%emt 0:00:12]} 7. O-O {[%emt 0:00:42]} O-O {[%emt 0:00:06]} 8. Qc2 {[%emt 0:00:08]} Re8 {[%emt 0:00:46]} 9. e3 {[%emt 0:00:27]} Qc7 {[%emt 0:00:41]} 10. b3 {[%emt 0:00:25]} Nf8 {[%emt 0:05:15]} 11. Bb2 {[%emt 0:04:22]} Ng6 {[%emt 0:04:38]} 12. Rac1 {[%emt 0:01:24]} Bg4 {[%emt 0:11:52]} 13. h3 {[%emt 0:01:15]} Bd7 {[%emt 0:00:14]} 14. d5 {[%emt 0:11:57]} c5 {[%emt 0:02:53]} 15. Nd2 {[%emt 0:02:24]} Qc8 {[%emt 0:01:38]} 16. Kh2 {[%emt 0:00:51]} h5 {[%emt 0:03:02]} 17. Rce1 {[%emt 0:11:35]} Nh7 {[%emt 0:10:40]} 18. f4 {[%emt 0:03:38]} f5 {[%emt 0:02:33]} 19. Ne2 {[%emt 0:26:05]} Nhf8 {[%emt 0:12:05]} 20. Bf3 {[%emt 0:05:37]} h4 {[%emt 0:03:18]} 21. Bh5 {[%emt 0:00:18]} hxg3+ {[%emt 0:01:01]} 22. Nxg3 {[%emt 0:00:12]} Bf6 {[%emt 0:06:10]} 23. fxe5 {[%emt 0:07:58]} Bxe5 {[%emt 0:00:17]} 24. Bxe5 {[%emt 0:00:40]} Rxe5 {[%emt 0:00:16]} 25. Nf3 {[%emt 0:00:17]} Re7 {[%emt 0:00:51]} 26. Ng5 {[%emt 0:03:49]} Ne5 {[%emt 0:10:32]} 27. e4 {[%emt 0:07:33]} g6 {[%emt 0:02:50]} 28. Bd1 {[%emt 0:06:09]} Rg7 {[%emt 0:04:38]} 29. exf5 {[%emt 0:00:20]} gxf5 {[%emt 0:00:45]} 30. Nxf5 {[%emt 0:00:07]} Bxf5 {[%emt 0:00:52]} 31. Qxf5 {[%emt 0:00:59]} Qd8 {[%emt 0:02:53]} 32. Rg1 {[%emt 0:00:38]} Qa5 {[%emt 0:01:33]} 33. Ref1 {[%emt 0:00:49]} Qd2+ {[%emt 0:03:48]} 34. Rf2 {[%emt 0:01:18]} Qe3 {[%emt 0:01:11]} 35. Bc2 {[%emt 0:00:18]} Rg6 {[%emt 0:02:49]} 36. Rg3 {[%emt 0:00:10]} Qc1 {[%emt 0:01:22]} 37. Ne6 {[%emt 0:00:25]} Rxg3 {[%emt 0:00:25]} 38. Qxf8+ {[%emt 0:00:06]} 1-0

[Event "Bamberg-Open 2019"]
[Site "Bamberg"]
[Date "2019.06.01"]
[Round "5.16"]
[White "Kues, Jarl-Hendrik"]
[Black "Hoekstra, Peter"]
[Result "1-0"]
[ECO "A40"]
[WhiteElo "2137"]
[BlackElo "1979"]
[Annotator "ChessBase"]
[PlyCount "41"]
[EventDate "2019.05.12"]
[EventType "swiss"]
[EventCountry "GER"]
[SourceTitle "playchess.com"]
[Source "ChessBase"]
[SourceQuality "1"]
[TimeControl "40/5400+30:900+30"]

1. d4 {[%emt 0:00:00]} g6 {[%emt 0:06:28]} 2. Bf4 {[%emt 0:00:00]} Nf6 {[%emt 0:00:07]} 3. Nc3 {[%emt 0:00:15]} d5 {[%emt 0:00:08]} 4. e3 {[%emt 0:01:33]} Bg7 {[%emt 0:00:14]} 5. h4 {[%emt 0:00:41]} c5 {[%emt 0:04:01]} 6. Nb5 {[%emt 0:00:54]} Na6 {[%emt 0:00:13]} 7. c3 {[%emt 0:08:34]} Qb6 {[%emt 0:09:57]} 8. dxc5 {[%emt 0:08:48]} Qxc5 {[%emt 0:00:22]} 9. Qd4 {[%emt 0:00:07]} Qxd4 {[%emt 0:05:50]} 10. exd4 {[%emt 0:01:39]} Bg4 {[%emt 0:06:49]} 11. f3 {[%emt 0:08:49]} Bd7 {[%emt 0:00:05]} 12. g4 {[%emt 0:06:10]} h5 {[%emt 0:01:11]} 13. g5 {[%emt 0:00:14]} Nh7 {[%emt 0:00:06]} 14. Bd3 {[%emt 0:04:25]} O-O {[%emt 0:02:01]} 15. Kd2 {[%emt 0:03:53]} Rfc8 {[%emt 0:03:29]} 16. a4 {[%emt 0:04:44]} Nf8 {[%emt 0:01:01]} 17. Ne2 {[%emt 0:01:00]} Ne6 {[%emt 0:00:45]} 18. Bg3 {[%emt 0:01:00]} Nec7 {[%emt 0:00:27]} 19. Nxc7 {[%emt 0:00:27]} Nxc7 {[%emt 0:00:06]} 20. Nf4 {[%emt 0:01:00]} Kh7 {[%emt 0:00:49]} 21. Nxh5 {[%emt 0:02:13]} 1-0

[Event "Bamberg-Open 2019"]
[Site "Bamberg"]
[Date "2019.06.01"]
[Round "5.17"]
[White "Lohvinov, Petro"]
[Black "Legahn, Dirk"]
[Result "1/2-1/2"]
[ECO "B30"]
[WhiteElo "2086"]
[BlackElo "2132"]
[Annotator "ChessBase"]
[PlyCount "94"]
[EventDate "2019.05.12"]
[EventType "swiss"]
[EventCountry "GER"]
[SourceTitle "playchess.com"]
[Source "ChessBase"]
[SourceQuality "1"]
[TimeControl "40/5400+30:900+30"]

1. e4 {[%emt 0:05:38]} c5 {[%emt 0:00:00]} 2. Nf3 {[%emt 0:00:04]} Nc6 {[%emt 0:00:00]} 3. d3 {[%emt 0:00:04]} g6 {[%emt 0:00:03]} 4. g3 {[%emt 0:00:07]} Bg7 {[%emt 0:00:09]} 5. Bg2 {[%emt 0:00:06]} Nf6 {[%emt 0:12:34]} 6. O-O {[%emt 0:00:40]} d5 {[%emt 0:00:43]} 7. Nbd2 {[%emt 0:00:46]} O-O {[%emt 0:01:18]} 8. Re1 {[%emt 0:04:55]} dxe4 {[%emt 0:06:44]} 9. dxe4 {[%emt 0:00:20]} e5 {[%emt 0:01:19]} 10. c3 {[%emt 0:03:32]} h6 {[%emt 0:08:29]} 11. Qc2 {[%emt 0:08:46]} Be6 {[%emt 0:10:37]} 12. Bf1 {[%emt 0:11:55]} Qc7 {[%emt 0:04:07]} 13. b3 {[%emt 0:02:16]} Rfd8 {[%emt 0:03:59]} 14. Nc4 {[%emt 0:05:35]} Rd7 {[%emt 0:12:03]} 15. Be3 {[%emt 0:13:54]} b6 {[%emt 0:05:07]} 16. Rad1 {[%emt 0:03:24]} Rad8 {[%emt 0:04:48]} 17. Rxd7 {[%emt 0:00:14]} Rxd7 {[%emt 0:00:17]} 18. Bc1 {[%emt 0:06:38]} Kh7 {[%emt 0:05:51]} 19. Ne3 {[%emt 0:03:09]} Qb7 {[%emt 0:05:30]} 20. Bc4 {[%emt 0:11:50]} Bxc4 {[%emt 0:02:12]} 21. Nxc4 {[%emt 0:01:53]} Qc7 {[%emt 0:00:29]} 22. Ne3 {[%emt 0:03:02]} Qd8 {[%emt 0:01:13]} 23. Kg2 {[%emt 0:04:30]} Qa8 {[%emt 0:01:31]} 24. Rd1 {[%emt 0:04:46]} Rxd1 {[%emt 0:00:42]} 25. Nxd1 {[%emt 0:00:02]} Nd8 {[%emt 0:02:58]} 26. Nd2 {[%emt 0:00:49]} Ne6 {[%emt 0:00:33]} 27. f3 {[%emt 0:00:47]} b5 {[%emt 0:02:26]} 28. Qd3 {[%emt 0:01:48]} Qc6 {[%emt 0:04:02]} 29. Ne3 {[%emt 0:00:46]} Nc7 {[%emt 0:01:44]} 30. c4 {[%emt 0:00:39]} a6 {[%emt 0:00:43]} 31. Bb2 {[%emt 0:00:06]} Nh5 {[%emt 0:00:37]} 32. Nd5 {[%emt 0:01:10]} Ne6 {[%emt 0:00:13]} 33. Nf1 {[%emt 0:01:13]} Qd7 {[%emt 0:01:36]} 34. Nfe3 {[%emt 0:01:03]} Ng5 {[%emt 0:00:38]} 35. g4 {[%emt 0:00:30]} Qe6 {[%emt 0:01:28]} 36. h4 {[%emt 0:00:29]} Nf4+ {[%emt 0:00:33]} 37. Nxf4 {[%emt 0:00:07]} exf4 {[%emt 0:00:15]} 38. Bxg7 {[%emt 0:00:35]} Kxg7 {[%emt 0:00:44]} 39. hxg5 {[%emt 0:00:50]} fxe3 {[%emt 0:00:04]} 40. gxh6+ {[%emt 0:00:12]} Kh7 {[%emt 0:00:59]} 41. cxb5 {[%emt 0:01:18]} Qe5 {[%emt 0:02:40]} 42. b6 {[%emt 0:08:53]} Qb2+ {[%emt 0:00:32]} 43. Kh3 {[%emt 0:01:28]} Qf2 {[%emt 0:01:14]} 44. b7 {[%emt 0:00:57]} Qxf3+ {[%emt 0:02:49]} 45. Kh2 {[%emt 0:02:00]} Qf2+ {[%emt 0:01:24]} 46. Kh3 {[%emt 0:00:21]} Qf3+ {[%emt 0:01:09]} 47. Kh2 {[%emt 0:01:38]} Qf2+ {[%emt 0:00:43]} 1/2-1/2

[Event "Bamberg-Open 2019"]
[Site "Bamberg"]
[Date "2019.06.01"]
[Round "5.18"]
[White "Carnot, Luca"]
[Black "Ziegenfuss, Antonia"]
[Result "1-0"]
[ECO "A45"]
[WhiteElo "2043"]
[BlackElo "2111"]
[Annotator "ChessBase"]
[PlyCount "37"]
[EventDate "2019.05.12"]
[EventType "swiss"]
[EventCountry "GER"]
[SourceTitle "playchess.com"]
[Source "ChessBase"]
[SourceQuality "1"]
[TimeControl "40/5400+30:900+30"]

1. d4 {[%emt 0:00:00]} Nf6 {[%emt 0:00:00]} 2. Bf4 {[%emt 0:00:00]} c5 {[%emt 0:01:09]} 3. e3 {[%emt 0:06:07]} Nd5 {[%emt 0:01:28]} 4. Bg3 {[%emt 0:00:31]} Qb6 {[%emt 0:00:10]} 5. b3 {[%emt 0:07:01]} e6 {[%emt 0:20:26]} 6. c3 {[%emt 0:01:12]} Nc6 {[%emt 0:03:21]} 7. Nf3 {[%emt 0:00:22]} Qa5 {[%emt 0:14:28]} 8. Qd2 {[%emt 0:05:36]} cxd4 {[%emt 0:05:01]} 9. exd4 {[%emt 0:01:17]} b5 {[%emt 0:03:25]} 10. Bd3 {[%emt 0:12:38]} Be7 {[%emt 0:10:30]} 11. O-O {[%emt 0:01:19]} Bb7 {[%emt 0:02:29]} 12. a4 {[%emt 0:13:07]} b4 {[%emt 0:03:22]} 13. c4 {[%emt 0:03:11]} Nf6 {[%emt 0:00:55]} 14. Qb2 {[%emt 0:01:49]} Nh5 {[%emt 0:03:08]} 15. Nbd2 {[%emt 0:03:23]} Nxg3 {[%emt 0:02:24]} 16. fxg3 {[%emt 0:00:08]} Bf6 {[%emt 0:04:25]} 17. Ne4 {[%emt 0:06:00]} Bxd4+ {[%emt 0:08:00]} 18. Nxd4 {[%emt 0:00:10]} Qe5 {[%emt 0:00:10]} 19. Nxc6 {[%emt 0:07:39]} 1-0

[Event "Bamberg-Open 2019"]
[Site "Bamberg"]
[Date "2019.06.01"]
[Round "5.19"]
[White "Boehme, Sebastian"]
[Black "Kolb, Tobias"]
[Result "0-1"]
[ECO "D00"]
[WhiteElo "2103"]
[BlackElo "1915"]
[Annotator "ChessBase"]
[PlyCount "92"]
[EventDate "2019.05.12"]
[EventType "swiss"]
[EventCountry "GER"]
[SourceTitle "playchess.com"]
[Source "ChessBase"]
[SourceQuality "1"]
[TimeControl "40/5400+30:900+30"]

1. d4 {[%emt 0:00:00]} d5 {[%emt 0:00:00]} 2. Bf4 {[%emt 0:00:00]} Nf6 {[%emt 0:00:00]} 3. e3 {[%emt 0:00:39]} e6 {[%emt 0:01:42]} 4. Nd2 {[%emt 0:00:24]} c5 {[%emt 0:00:56]} 5. c3 {[%emt 0:00:10]} Nc6 {[%emt 0:01:42]} 6. Ngf3 {[%emt 0:03:17]} Bd6 {[%emt 0:04:08]} 7. Bg3 {[%emt 0:00:37]} O-O {[%emt 0:00:45]} 8. Bd3 {[%emt 0:02:11]} cxd4 {[%emt 0:07:17]} 9. exd4 {[%emt 0:01:23]} Qc7 {[%emt 0:02:22]} 10. Qe2 {[%emt 0:09:15]} a6 {[%emt 0:23:55]} 11. Ne5 {[%emt 0:03:02]} b5 {[%emt 0:08:20]} 12. f4 {[%emt 0:05:27]} g6 {[%emt 0:07:22]} 13. Bh4 {[%emt 0:05:05]} Nh5 {[%emt 0:01:03]} 14. O-O {[%emt 0:00:55]} Be7 {[%emt 0:11:52]} 15. Bxe7 {[%emt 0:05:15]} Nxe7 {[%emt 0:00:21]} 16. g4 {[%emt 0:01:35]} Ng7 {[%emt 0:03:37]} 17. Qe3 {[%emt 0:11:43]} f6 {[%emt 0:02:26]} 18. Nef3 {[%emt 0:00:18]} Bd7 {[%emt 0:01:38]} 19. Nb3 {[%emt 0:02:28]} Nc8 {[%emt 0:03:23]} 20. Nc5 {[%emt 0:02:20]} Nd6 {[%emt 0:00:13]} 21. b3 {[%emt 0:04:19]} Nb7 {[%emt 0:01:40]} 22. Nxb7 {[%emt 0:07:16]} Qxb7 {[%emt 0:00:02]} 23. g5 {[%emt 0:02:13]} Nh5 {[%emt 0:03:45]} 24. Be2 {[%emt 0:03:21]} Qc7 {[%emt 0:01:08]} 25. Nd2 {[%emt 0:06:15]} Ng7 {[%emt 0:01:52]} 26. Bg4 {[%emt 0:01:47]} fxg5 {[%emt 0:01:29]} 27. fxg5 {[%emt 0:00:07]} Nf5 {[%emt 0:00:07]} 28. Bxf5 {[%emt 0:00:21]} Rxf5 {[%emt 0:00:08]} 29. Rxf5 {[%emt 0:00:36]} exf5 {[%emt 0:00:01]} 30. Nf3 {[%emt 0:04:06]} Rc8 {[%emt 0:04:12]} 31. Ne5 {[%emt 0:00:52]} Be8 {[%emt 0:01:56]} 32. Rc1 {[%emt 0:01:01]} Bf7 {[%emt 0:00:08]} 33. Kf2 {[%emt 0:05:54]} Qa5 {[%emt 0:01:45]} 34. Nxf7 {[%emt 0:02:27]} Kxf7 {[%emt 0:00:02]} 35. Re1 {[%emt 0:02:44]} Qxc3 {[%emt 0:01:12]} 36. Qe6+ {[%emt 0:01:16]} Kg7 {[%emt 0:00:34]} 37. Qd7+ {[%emt 0:01:14]} Kh8 {[%emt 0:02:39]} 38. Re3 {[%emt 0:03:42]} Qd2+ {[%emt 0:00:51]} 39. Kf3 {[%emt 0:00:08]} Qd1+ {[%emt 0:00:14]} 40. Re2 {[%emt 0:03:02]} Rc3+ {[%emt 0:00:16]} 41. Kf2 {[%emt 0:16:07]} Qxd4+ {[%emt 0:15:36]} 42. Kf1 {[%emt 0:00:00]} Qf4+ {[%emt 0:00:00]} 43. Kg1 {[%emt 0:00:00]} Rc1+ {[%emt 0:00:00]} 44. Kg2 {[%emt 0:00:00]} Qf1+ {[%emt 0:00:00]} 45. Kg3 {[%emt 0:00:00]} Rc3+ {[%emt 0:00:00]} 46. Kh4 {[%emt 0:00:00]} Qf4# 0-1

[Event "Bamberg-Open 2019"]
[Site "Bamberg"]
[Date "2019.06.01"]
[Round "5.20"]
[White "Haselbeck, Franz"]
[Black "Kunath, Tim"]
[Result "1/2-1/2"]
[ECO "A05"]
[WhiteElo "1867"]
[BlackElo "2103"]
[Annotator "ChessBase"]
[PlyCount "77"]
[EventDate "2019.05.12"]
[EventType "swiss"]
[EventCountry "GER"]
[SourceTitle "playchess.com"]
[Source "ChessBase"]
[SourceQuality "1"]
[TimeControl "40/5400+30:900+30"]

1. Nf3 {[%emt 0:00:00]} Nf6 {[%emt 0:00:00]} 2. g3 {[%emt 0:00:00]} b5 {[%emt 0:01:12]} 3. Bg2 {[%emt 0:00:41]} Bb7 {[%emt 0:03:21]} 4. O-O {[%emt 0:00:14]} e6 {[%emt 0:00:15]} 5. a4 {[%emt 0:00:17]} b4 {[%emt 0:06:30]} 6. d3 {[%emt 0:00:27]} Be7 {[%emt 0:00:31]} 7. e4 {[%emt 0:00:19]} O-O {[%emt 0:00:12]} 8. e5 {[%emt 0:06:46]} Ne8 {[%emt 0:00:12]} 9. Nbd2 {[%emt 0:00:51]} d6 {[%emt 0:01:09]} 10. Nc4 {[%emt 0:00:43]} a5 {[%emt 0:08:09]} 11. Be3 {[%emt 0:08:04]} Nd7 {[%emt 0:01:53]} 12. Re1 {[%emt 0:12:51]} Ra6 {[%emt 0:14:10]} 13. Qe2 {[%emt 0:02:56]} Bxf3 {[%emt 0:07:15]} 14. Bxf3 {[%emt 0:00:31]} d5 {[%emt 0:00:08]} 15. Nd2 {[%emt 0:01:57]} Nxe5 {[%emt 0:00:36]} 16. Bg2 {[%emt 0:06:54]} Ng6 {[%emt 0:06:57]} 17. d4 {[%emt 0:01:57]} Rb6 {[%emt 0:06:36]} 18. Nb3 {[%emt 0:03:10]} Qa8 {[%emt 0:01:04]} 19. h4 {[%emt 0:00:48]} Bd6 {[%emt 0:04:09]} 20. h5 {[%emt 0:02:16]} Ne7 {[%emt 0:00:08]} 21. h6 {[%emt 0:05:16]} Nf5 {[%emt 0:04:56]} 22. hxg7 {[%emt 0:02:19]} Nexg7 {[%emt 0:00:04]} 23. Bg5 {[%emt 0:07:51]} Be7 {[%emt 0:00:43]} 24. Bxe7 {[%emt 0:01:47]} Nxe7 {[%emt 0:00:04]} 25. Nc5 {[%emt 0:00:25]} Qd8 {[%emt 0:01:05]} 26. Qg4 {[%emt 0:01:31]} Ng6 {[%emt 0:01:26]} 27. f4 {[%emt 0:01:04]} Nf5 {[%emt 0:02:51]} 28. Rad1 {[%emt 0:01:42]} Qd6 {[%emt 0:01:01]} 29. Nb3 {[%emt 0:01:34]} Rc6 {[%emt 0:02:05]} 30. Rd2 {[%emt 0:01:31]} Rc4 {[%emt 0:00:21]} 31. Bf1 {[%emt 0:01:04]} Qb6 {[%emt 0:06:35]} 32. Bxc4 {[%emt 0:03:33]} dxc4 {[%emt 0:00:06]} 33. Nc5 {[%emt 0:06:48]} c3 {[%emt 0:10:20]} 34. bxc3 {[%emt 0:01:19]} bxc3 {[%emt 0:00:01]} 35. Rf2 {[%emt 0:00:59]} Rd8 {[%emt 0:00:34]} 36. Ne4 {[%emt 0:06:16]} Rxd4 {[%emt 0:02:46]} 37. Nf6+ {[%emt 0:00:09]} Kg7 {[%emt 0:00:24]} 38. Nh5+ {[%emt 0:00:17]} Kg8 39. Qf3 1/2-1/2

[Event "Bamberg-Open 2019"]
[Site "Bamberg"]
[Date "2019.06.01"]
[Round "5.21"]
[White "Waffenschmidt, Joachim"]
[Black "Troyke, Christian"]
[Result "0-1"]
[ECO "E91"]
[WhiteElo "1983"]
[BlackElo "2328"]
[Annotator "ChessBase"]
[PlyCount "80"]
[EventDate "2019.05.12"]
[EventType "swiss"]
[EventCountry "GER"]
[SourceTitle "playchess.com"]
[Source "ChessBase"]
[SourceQuality "1"]
[TimeControl "40/5400+30:900+30"]

1. d4 {[%emt 0:00:00]} g6 {[%emt 0:00:00]} 2. c4 {[%emt 0:00:00]} Nf6 {[%emt 0:00:00]} 3. Nc3 {[%emt 0:00:00]} Bg7 {[%emt 0:00:00]} 4. e4 {[%emt 0:00:00]} d6 {[%emt 0:00:01]} 5. Nf3 {[%emt 0:00:05]} O-O {[%emt 0:00:08]} 6. Be2 {[%emt 0:00:18]} c5 {[%emt 0:00:11]} 7. O-O {[%emt 0:01:07]} cxd4 {[%emt 0:00:06]} 8. Nxd4 {[%emt 0:00:03]} Nc6 {[%emt 0:00:07]} 9. Be3 {[%emt 0:00:27]} Bd7 {[%emt 0:00:06]} 10. Qd2 {[%emt 0:01:16]} Nxd4 {[%emt 0:00:10]} 11. Bxd4 {[%emt 0:00:08]} Bc6 {[%emt 0:00:05]} 12. Bd3 {[%emt 0:00:14]} a5 {[%emt 0:00:08]} 13. Rae1 {[%emt 0:00:53]} Nd7 {[%emt 0:03:56]} 14. Bxg7 {[%emt 0:00:10]} Kxg7 {[%emt 0:00:07]} 15. Re3 {[%emt 0:00:04]} h5 {[%emt 0:01:40]} 16. Nd5 {[%emt 0:09:40]} e5 {[%emt 0:04:16]} 17. Be2 {[%emt 0:13:53]} Bxd5 {[%emt 0:07:20]} 18. Qxd5 {[%emt 0:00:27]} Nc5 {[%emt 0:00:25]} 19. Rd1 {[%emt 0:02:08]} Ra6 {[%emt 0:00:11]} 20. b3 {[%emt 0:11:24]} Qe7 {[%emt 0:06:00]} 21. g3 {[%emt 0:09:28]} Rc8 {[%emt 0:06:54]} 22. Bf1 {[%emt 0:02:27]} Rcc6 {[%emt 0:14:10]} 23. Bh3 {[%emt 0:05:17]} Rcb6 {[%emt 0:01:57]} 24. Rb1 {[%emt 0:01:25]} Ra8 {[%emt 0:02:44]} 25. a3 {[%emt 0:01:41]} Rba6 {[%emt 0:02:42]} 26. Ree1 {[%emt 0:05:11]} a4 {[%emt 0:09:35]} 27. b4 {[%emt 0:01:55]} Nb3 {[%emt 0:02:52]} 28. Red1 {[%emt 0:02:32]} Rc6 {[%emt 0:03:18]} 29. Bf1 {[%emt 0:05:24]} Nd4 {[%emt 0:02:41]} 30. f4 {[%emt 0:02:56]} Qf6 {[%emt 0:08:44]} 31. Kh1 {[%emt 0:03:38]} h4 {[%emt 0:01:47]} 32. c5 {[%emt 0:07:02]} hxg3 {[%emt 0:03:20]} 33. hxg3 {[%emt 0:00:51]} dxc5 {[%emt 0:01:05]} 34. Qxe5 {[%emt 0:01:44]} Rh8+ {[%emt 0:00:16]} 35. Kg2 {[%emt 0:03:24]} Rh2+ {[%emt 0:00:06]} 36. Kxh2 {[%emt 0:00:04]} Nf3+ {[%emt 0:00:05]} 37. Kg2 {[%emt 0:01:28]} Nxe5 {[%emt 0:00:09]} 38. fxe5 {[%emt 0:00:02]} Qxe5 {[%emt 0:00:17]} 39. Re1 {[%emt 0:01:48]} cxb4 {[%emt 0:00:44]} 40. Rxb4 {[%emt 0:00:03]} Rc3 {[%emt 0:00:13]} 0-1